[Event "Redbull chessmasters 2019"]
[Site "Istambul"]
[Date "2019.11.24"]
[Round "7.16"]
[White "Ozdemir, Cemre"]
[Black "Sahin, Handenur"]
[Result "1/2-1/2"]
[ECO "C92"]
[WhiteElo "1326"]
[BlackElo "2014"]
[Annotator "NA"]
[PlyCount "139"]
[EventDate "2019.11.23"]
[EventType "k.o."]
[EventCountry "TUR"]
[SourceTitle "playchess.com"]
[Source "ChessBase"]
[SourceQuality "1"]
[TimeControl "600+5"]

1. e4 {[%emt 0:00:00]} e5 {[%emt 0:00:00]} 2. Nf3 {[%emt 0:00:05]} Nc6 {[%emt 0:00:05]} 3. Bb5 {[%emt 0:00:05]} a6 {[%emt 0:00:05]} 4. Ba4 {[%emt 0:00:00]} Nf6 {[%emt 0:00:00]} 5. O-O {[%emt 0:00:00]} Be7 {[%emt 0:00:00]} 6. Re1 {[%emt 0:00:00]} d6 {[%emt 0:00:06]} 7. h3 {[%emt 0:00:00]} O-O {[%emt 0:00:09]} 8. c3 {[%emt 0:00:05]} b5 {[%emt 0:00:05]} 9. Bb3 {[%emt 0:00:05]} Nd7 {[%emt 0:00:05]} 10. d4 {[%emt 0:00:00]} Bf6 {[%emt 0:00:01]} 11. Be3 {[%emt 0:00:58]} Na5 {[%emt 0:00:38]} 12. Bc2 {[%emt 0:00:03]} Nc4 {[%emt 0:00:03]} 13. b3 {[%emt 0:00:53]} Nxe3 {[%emt 0:00:04]} 14. fxe3 {[%emt 0:00:36]} Bb7 {[%emt 0:00:12]} 15. Nbd2 {[%emt 0:00:12]} c5 {[%emt 0:00:04]} 16. Nf1 {[%emt 0:00:01]} Rc8 {[%emt 0:00:28]} 17. Ng3 {[%emt 0:00:21]} g6 {[%emt 0:00:14]} 18. Rc1 {[%emt 0:00:58]} Bg7 {[%emt 0:01:07]} 19. Qd2 {[%emt 0:01:16]} Qb6 {[%emt 0:00:32]} 20. Nh1 {[%emt 0:01:25]} Rfe8 {[%emt 0:00:39]} 21. Nf2 {[%emt 0:00:03]} Rcd8 {[%emt 0:00:38]} 22. Bb1 {[%emt 0:00:19]} a5 {[%emt 0:00:47]} 23. a3 {[%emt 0:00:29]} d5 {[%emt 0:00:49]} 24. Bc2 {[%emt 0:01:25]} cxd4 {[%emt 0:01:04]} 25. cxd4 {[%emt 0:00:28]} exd4 {[%emt 0:00:48]} 26. exd4 {[%emt 0:00:10]} dxe4 {[%emt 0:00:07]} 27. Bxe4 {[%emt 0:00:20]} Bxe4 {[%emt 0:00:20]} 28. Nxe4 {[%emt 0:00:06]} Nf8 {[%emt 0:00:22]} 29. Rcd1 {[%emt 0:01:44]} Ne6 {[%emt 0:00:11]} 30. Nc3 {[%emt 0:00:12]} b4 {[%emt 0:01:07]} 31. Na4 {[%emt 0:00:04]} Qd6 {[%emt 0:00:35]} 32. axb4 {[%emt 0:00:05]} axb4 {[%emt 0:00:02]} 33. Qf2 {[%emt 0:00:05]} Nf4 {[%emt 0:00:12]} 34. Nc5 {[%emt 0:00:06]} Rxe1+ {[%emt 0:00:22]} 35. Rxe1 {[%emt 0:00:01]} Bxd4 {[%emt 0:00:27]} 36. Nxd4 {[%emt 0:00:05]} Qxd4 {[%emt 0:00:02]} 37. Qxd4 {[%emt 0:00:02]} Rxd4 {[%emt 0:00:00]} 38. Re4 {[%emt 0:00:02]} Rxe4 {[%emt 0:00:07]} 39. Nxe4 {[%emt 0:00:05]} Ne2+ {[%emt 0:00:05]} 40. Kf2 {[%emt 0:00:05]} Nd4 {[%emt 0:00:05]} 41. Nc5 {[%emt 0:00:00]} f5 {[%emt 0:00:02]} 42. Nd3 {[%emt 0:00:00]} Nxb3 {[%emt 0:00:09]} 43. Nxb4 {[%emt 0:00:02]} Kf7 {[%emt 0:00:05]} 44. Kf3 {[%emt 0:00:05]} Ke6 {[%emt 0:00:05]} 45. Nd3 {[%emt 0:00:00]} Kf6 {[%emt 0:00:00]} 46. Kf4 {[%emt 0:00:00]} g5+ {[%emt 0:00:00]} 47. Kf3 {[%emt 0:00:05]} Nd4+ {[%emt 0:00:04]} 48. Ke3 {[%emt 0:00:05]} Nc6 {[%emt 0:00:00]} 49. Kf3 {[%emt 0:00:00]} Ne5+ {[%emt 0:00:00]} 50. Nxe5 {[%emt 0:00:13]} Kxe5 {[%emt 0:00:01]} 51. Ke3 {[%emt 0:00:05]} h5 {[%emt 0:00:05]} 52. g3 {[%emt 0:00:03]} f4+ {[%emt 0:00:10]} 53. Kf3 {[%emt 0:00:34]} fxg3 {[%emt 0:00:09]} 54. Kxg3 {[%emt 0:00:05]} Ke4 {[%emt 0:00:05]} 55. Kf2 {[%emt 0:00:05]} Kf4 {[%emt 0:00:00]} 56. Kg2 {[%emt 0:00:07]} h4 {[%emt 0:00:00]} 57. Kf2 {[%emt 0:00:01]} Ke4 {[%emt 0:00:00]} 58. Ke2 {[%emt 0:00:14]} Ke5 {[%emt 0:00:03]} 59. Ke3 {[%emt 0:00:06]} Kf6 {[%emt 0:00:06]} 60. Kf2 {[%emt 0:00:01]} Ke6 {[%emt 0:00:09]} 61. Ke2 {[%emt 0:00:02]} Kd6 {[%emt 0:00:04]} 62. Kf2 {[%emt 0:00:02]} Kd5 {[%emt 0:00:03]} 63. Kf3 {[%emt 0:00:02]} Ke5 {[%emt 0:00:02]} 64. Ke3 {[%emt 0:00:01]} Kd5 {[%emt 0:00:29]} 65. Kf3 {[%emt 0:00:01]} Ke6 {[%emt 0:00:07]} 66. Ke2 {[%emt 0:00:08]} Kf7 {[%emt 0:00:17]} 67. Kf3 {[%emt 0:00:03]} Kg6 {[%emt 0:00:02]} 68. Kg2 {[%emt 0:00:03]} Kf6 {[%emt 0:00:05]} 69. Kf2 {[%emt 0:00:01]} Ke5 {[%emt 0:00:06]} 70. Ke3 {[%emt 0:00:02]} 1/2-1/2